bitfinex/quotes_SOLUSD_20250622
["timestamp","ask_amount","ask_price","bid_price","bid_amount"]
[1750572169486,10.85073643,136.48,136.45,5.86295346]
[1750572169990,10.85073643,136.46,136.43,5.86381294]
[1750572170458,1.5368,136.47,136.43,25.51026879]
[1750572171457,10.85073643,136.46,136.42,10.85073643]
[1750572171784,12.38753643,136.47,136.42,10.85073643]
[1750572172086,17.85502667,136.47,136.42,10.85073643]
[1750572172288,12.38753643,136.47,136.42,10.85073643]
[1750572172580,17.85502667,136.47,136.43,5.86381294]
[1750572172764,12.38753643,136.47,136.43,5.86381294]
[1750572173081,10.85073643,136.45,136.43,5.86381294]
[1750572173281,10.85073643,136.44,136.43,5.86381294]
[1750572174158,10.85073643,136.45,136.43,5.86381294]
[1750572174679,10.85073643,136.45,136.41,20.52635436]
[1750572177280,10.85073643,136.45,136.41,14.66168169]
[1750572178055,10.85073643,136.44,136.41,14.66168169]
[1750572178256,10.85073643,136.43,136.41,14.66168169]
[1750572178668,10.85073643,136.44,136.41,14.66168169]
[1750572179887,10.85073643,136.43,136.41,14.66168169]
[1750572180070,10.85073643,136.42,136.4,5.86510263]
[1750572180279,10.85073643,136.41,136.4,5.86510263]
[1750572180781,10.85073643,136.42,136.4,5.86510263]
[1750572181297,10.85073643,136.43,136.4,5.86510263]
[1750572181496,10.85073643,136.43,136.4,20.52785922]
[1750572181666,10.85073643,136.46,136.42,16.7149792]
[1750572181869,10.85073643,136.46,136.42,31.37558614]
[1750572184269,6.96,136.48,136.43,10.85073643]
[1750572184485,10.85073643,136.49,136.45,10.85073643]
[1750572184687,10.85073643,136.49,136.44,10.85073643]
[1750572185292,10.85073643,136.48,136.43,10.85073643]
[1750572185469,13.82429973,136.5,136.44,10.85073643]
[1750572185687,10.85073643,136.48,136.44,10.85073643]
[1750572185974,10.85073643,136.49,136.45,20.52033711]
[1750572186161,19.21663643,136.5,136.45,31.37107354]
[1750572187288,10.85073643,136.49,136.45,20.52033711]
[1750572189088,8.3659,136.5,136.45,31.37107354]
[1750572189297,10.85073643,136.49,136.45,20.52033711]
[1750572190398,10.85073643,136.49,136.42,49.8460636]
[1750572190602,10.85073643,136.49,136.44,10.85073643]
[1750572191485,10.85073643,136.49,136.45,20.52033711]
[1750572192579,10.85073643,136.48,136.45,20.52033711]
[1750572193485,10.85073643,136.47,136.43,5.86381294]
[1750572194371,10.85073643,136.47,136.43,20.5233453]
[1750572195474,146.9,136.46,136.43,20.5233453]
[1750572195672,146.9,136.45,136.43,20.5233453]
[1750572197071,146.9,136.45,136.43,14.65953236]
[1750572198372,157.75073643,136.45,136.43,14.65953236]
[1750572198694,26.0,136.48,136.42,5.86424277]
[1750572198695,157.75073643,136.44,136.42,5.86424277]
[1750572198999,10.85073643,136.43,136.42,5.86424277]
[1750572199293,10.85073643,136.43,136.4,14.66188542]
[1750572200982,157.75073643,136.42,136.4,14.66188542]
[1750572201212,157.75073643,136.42,136.39,5.86553266]
[1750572201393,146.9,136.41,136.39,5.86553266]
[1750572202188,146.9,136.41,136.38,20.53086962]
[1750572203016,146.9,136.41,136.38,31.38160605]
[1750572203220,146.9,136.41,136.39,10.85073643]
[1750572204320,146.9,136.41,136.4,5.86510263]
[1750572205586,146.9,136.41,136.4,16.71583906]
[1750572206630,146.9,136.41,136.4,35.36548792]
[1750572207314,1.5454,136.48,136.41,18.64964886]
[1750572207315,146.9,136.46,136.41,18.64964886]
[1750572207515,146.9,136.45,136.41,18.64964886]
[1750572207719,146.9,136.45,136.43,10.85073643]
[1750572208127,146.9,136.45,136.44,5.86338317]
[1750572208626,146.9,136.45,136.44,16.7141196]
[1750572209029,146.9,136.45,136.44,5.86338317]
[1750572209190,146.9,136.45,136.44,16.7141196]
[1750572210415,146.9,136.45,136.44,5.86338317]
[1750572210613,146.9,136.45,136.44,16.7141196]
[1750572211218,146.9,136.45,136.44,5.86338317]
[1750572211416,146.9,136.45,136.44,16.7141196]
[1750572219218,146.9,136.45,136.44,5.86338317]
[1750572223415,157.75073643,136.45,136.44,5.86338317]
[1750572223733,146.9,136.45,136.44,5.86338317]
[1750572225122,10.85073643,136.46,136.42,20.52468279]
[1750572227534,10.85073643,136.45,136.42,20.52468279]
[1750572228107,10.85073643,136.45,136.42,14.66044002]
[1750572228913,146.9,136.44,136.42,14.66044002]
[1750572232142,157.75073643,136.44,136.42,14.66044002]
[1750572233542,30.44,136.46,136.4,5.86510263]
[1750572233543,157.75073643,136.43,136.4,5.86510263]
[1750572233842,157.75073643,136.42,136.4,5.86510263]
[1750572234024,146.9,136.41,136.4,5.86510263]
[1750572234338,188.15073643,136.41,136.4,5.86510263]
[1750572235638,188.15073643,136.41,136.36,20.53293486]
[1750572235821,157.75073643,136.4,136.36,20.53293486]
[1750572237125,157.75073643,136.4,136.36,14.66611175]
[1750572238249,146.9,136.4,136.37,10.85073643]
[1750572239448,146.9,136.4,136.38,5.86596275]
[1750572239826,146.9,136.39,136.38,5.86596275]
[1750572245061,146.9,136.39,136.36,25.51684818]
[1750572245062,146.9,136.39,136.37,5.8663929]
[1750572247034,146.9,136.39,136.36,25.51684818]
[1750572248235,146.9,136.39,136.36,31.38367129]
[1750572250263,146.9,136.39,136.36,14.66611175]
[1750572250734,146.9,136.39,136.36,25.51684818]
[1750572251549,146.9,136.38,136.36,14.66611175]
[1750572251742,146.9,136.38,136.35,5.86725339]
[1750572251743,146.9,136.37,136.35,5.86725339]
[1750572251950,10.85073643,136.36,136.35,5.86725339]
[1750572252353,10.85073643,136.36,136.33,14.66940945]
[1750572252543,10.85073643,136.35,136.33,14.66940945]
[1750572252961,10.85073643,136.35,136.32,5.8685446]
[1750572253270,10.85073643,136.33,136.32,5.8685446]
[1750572253568,146.9,136.34,136.32,5.8685446]
[1750572255786,157.75073643,136.34,136.32,5.8685446]
[1750572256145,188.15073643,136.34,136.32,5.8685446]
[1750572256358,10.85073643,136.33,136.32,5.8685446]
[1750572257164,10.85073643,136.33,136.31,5.86897513]
[1750572258186,30.4,136.34,136.31,20.54141295]
[1750572258360,41.25073643,136.34,136.31,20.54141295]
[1750572259372,10.85073643,136.34,136.31,20.54141295]
[1750572259778,30.4,136.35,136.31,20.54141295]
[1750572260076,10.85073643,136.33,136.31,20.54141295]
[1750572260267,10.85073643,136.33,136.31,5.86897513]
[1750572260471,165.94403643,136.32,136.3,126.66843353]
[1750572260784,10.85073643,136.31,136.3,5.86932661]
[1750572261478,41.25073643,136.31,136.28,5.869923]
[1750572261771,10.85073643,136.29,136.28,5.869923]
[1750572262082,146.9,136.3,136.28,5.869923]
[1750572262281,157.75073643,136.3,136.26,20.54829056]
[1750572262978,157.75073643,136.3,136.26,31.39902699]
[1750572263372,10.85073643,136.29,136.26,20.54829056]
[1750572263574,157.75073643,136.28,136.26,5.87112872]
[1750572263884,1.5566,136.26,136.24,5.8719906]
[1750572264084,12.40733643,136.26,136.24,5.8719906]
[1750572264296,12.40733643,136.26,136.22,10.85073643]
[1750572264503,146.9,136.25,136.22,10.85073643]
[1750572265061,146.9,136.25,136.21,10.85073643]
[1750572265483,146.9,136.25,136.22,31.405721]
[1750572266191,146.9,136.25,136.22,20.55498457]
[1750572266375,157.75073643,136.25,136.22,20.55498457]
[1750572267686,157.75073643,136.25,136.22,14.68213184]
[1750572267873,10.85073643,136.24,136.22,14.68213184]
[1750572268389,10.85073643,136.23,136.22,14.68213184]
[1750572269295,146.9,136.22,136.2,5.87371512]
[1750572269466,10.85073643,136.21,136.2,5.87371512]
[1750572269790,157.75073643,136.22,136.2,5.87371512]
[1750572270988,157.75073643,136.22,136.19,14.68453371]
[1750572271203,146.9,136.21,136.19,14.68453371]
[1750572271573,146.9,136.21,136.19,25.53527014]
[1750572272174,146.9,136.21,136.19,14.68453371]
[1750572272175,157.75073643,136.21,136.19,14.68453371]
[1750572272382,157.75073643,136.21,136.18,5.87457776]
[1750572272994,157.75073643,136.2,136.17,20.56253211]
[1750572274494,146.9,136.19,136.17,20.56253211]
[1750572274702,146.9,136.18,136.17,20.56253211]
[1750572280316,10.85073643,136.19,136.17,20.56253211]
[1750572281395,10.85073643,136.19,136.17,14.68752294]
[1750572282480,146.9,136.17,136.15,5.87587219]
[1750572282702,10.85073643,136.16,136.15,5.87587219]
[1750572282909,10.85073643,136.17,136.15,20.56555268]
[1750572284120,31.9439,136.19,136.15,14.68968049]
[1750572284408,10.85073643,136.18,136.15,14.68968049]
[1750572285219,10.85073643,136.17,136.15,14.68968049]
[1750572285600,10.85073643,136.16,136.14,5.8763038]
[1750572285794,10.85073643,136.17,136.14,5.8763038]
[1750572286516,10.85073643,136.17,136.14,20.56706331]
[1750572288517,38.6239,136.19,136.14,31.41779974]
[1750572288815,10.85073643,136.18,136.14,31.41779974]
[1750572289189,49.47463643,136.19,136.15,10.85073643]
[1750572289494,49.47463643,136.19,136.14,60.79931876]
[1750572289495,19.03463643,136.19,136.14,60.79931876]
[1750572290007,146.9,136.15,136.14,60.79931876]
[1750572290210,146.9,136.15,136.14,20.56706331]
[1750572291630,157.75073643,136.15,136.14,20.56706331]
[1750572291993,10.85073643,136.15,136.14,5.8763038]
[1750572292288,48.91203643,136.15,136.12,5.8771672]
[1750572292500,10.85073643,136.13,136.12,5.8771672]
[1750572292717,10.85073643,136.13,136.11,14.69373932]
[1750572292891,10.85073643,136.12,136.11,14.69373932]
[1750572293607,10.85073643,136.12,136.09,5.87846278]
[1750572293930,64.0613,136.15,136.09,5.87846278]
[1750572293931,10.85073643,136.1,136.09,5.87846278]
[1750572294404,10.85073643,136.12,136.09,20.57461973]
[1750572296230,10.85073643,136.11,136.09,20.57461973]
[1750572296792,10.85073643,136.11,136.09,14.69615695]
[1750572298002,146.9,136.12,136.09,14.69615695]
[1750572298200,10.85073643,136.11,136.09,14.69615695]
[1750572298423,10.85073643,136.1,136.09,14.69615695]
[1750572299103,10.85073643,136.1,136.06,29.39684536]
[1750572299302,10.85073643,136.1,136.06,40.24758179]
[1750572299820,10.85073643,136.1,136.05,20.58066886]
[1750572300011,10.85073643,136.09,136.05,20.58066886]
[1750572300723,10.85073643,136.11,136.06,10.85073643]
[1750572301115,146.9,136.12,136.09,20.57461973]
[1750572301418,157.75073643,136.12,136.09,20.57461973]
[1750572301608,10.85073643,136.1,136.09,5.87846278]
[1750572302826,10.85073643,136.11,136.09,5.87846278]
[1750572303025,157.75073643,136.12,136.09,20.57461973]
[1750572303207,146.9,136.12,136.09,20.57461973]
[1750572303925,157.75073643,136.12,136.09,20.57461973]
[1750572304421,10.85073643,136.11,136.09,20.57461973]
[1750572304807,146.9,136.1,136.09,20.57461973]
[1750572305206,146.9,136.1,136.09,14.69615695]
[1750572305605,157.75073643,136.1,136.09,14.69615695]
[1750572307512,146.9,136.1,136.09,14.69615695]
[1750572307722,146.9,136.1,136.09,25.54689338]
[1750572308514,146.9,136.1,136.09,14.69615695]
[1750572309837,146.9,136.1,136.09,31.42535616]
[1750572313136,146.9,136.1,136.09,14.69615695]
[1750572314224,146.9,136.1,136.09,25.54689338]
[1750572314641,146.9,136.1,136.09,31.42535616]
[1750572315910,146.9,136.1,136.09,50.07500502]
[1750572319138,146.9,136.1,136.09,20.57461973]
[1750572320549,146.9,136.1,136.09,14.69615695]
[1750572320883,10.85073643,136.12,136.08,5.87889476]
[1750572320884,146.9,136.09,136.08,5.87889476]
[1750572321145,10.85073643,136.1,136.08,5.87889476]
[1750572321450,10.85073643,136.09,136.08,5.87889476]
[1750572321819,10.85073643,136.1,136.08,5.87889476]
[1750572322158,19.03233643,136.09,136.05,5.8801911]
[1750572322361,157.75073643,136.08,136.05,5.8801911]
[1750572322555,157.75073643,136.07,136.03,20.5829091]
[1750572322766,10.85073643,136.06,136.03,20.5829091]
[1750572326441,157.75073643,136.05,136.03,20.5829091]
[1750572327199,146.9,136.05,136.03,20.5829091]
[1750572327355,146.9,136.05,136.03,5.88105564]
[1750572327562,157.75073643,136.04,136.03,5.88105564]
[1750572327758,146.9,136.03,136.01,5.88192044]
[1750572327957,146.9,136.03,135.97,10.85073643]
[1750572327958,157.75073643,136.02,135.98,5.88321812]
[1750572328194,10.85073643,136.01,135.98,5.88321812]
[1750572328361,10.85073643,136.01,135.97,20.59261929]
[1750572328764,10.85073643,135.99,135.97,5.8836508]
[1750572329056,8.1816,135.97,135.95,5.88451636]
[1750572329266,157.75073643,135.96,135.92,5.88581518]
[1750572329465,157.75073643,135.95,135.92,5.88581518]
[1750572330292,157.75073643,135.95,135.88,27.6065654]
[1750572330506,157.75073643,135.95,135.9,10.85073643]
[1750572330683,10.85073643,135.94,135.88,27.6065654]
[1750572330881,10.85073643,135.94,135.89,10.85073643]
[1750572332365,10.85073643,135.94,135.9,20.60338483]
[1750572334483,10.85073643,135.94,135.9,25.56743988]
[1750572334974,177.34,135.95,135.9,25.56743988]
[1750572334975,146.9,135.95,135.92,10.85073643]
[1750572336511,146.9,135.95,135.93,5.88538218]
[1750572339003,10.85073643,135.94,135.93,5.88538218]
[1750572339799,41.31073643,135.94,135.91,5.88624825]
[1750572339990,10.85073643,135.92,135.91,5.88624825]
[1750572340601,10.85073643,135.92,135.89,5.88711457]
[1750572341606,10.85073643,135.91,135.89,5.88711457]
[1750572341809,10.85073643,135.9,135.89,5.88711457]
[1750572343308,10.85073643,135.9,135.88,1.6065654]
[1750572343309,10.85073643,135.9,135.88,7.49399446]
[1750572343504,7.7122,135.91,135.88,7.49399446]
[1750572343505,10.85073643,135.89,135.88,7.49399446]
[1750572346688,37.14,135.9,135.88,7.49399446]
[1750572346890,10.85073643,135.89,135.88,7.49399446]
[1750572348083,10.85073643,135.89,135.88,1.6065654]
[1750572350012,10.85073643,135.89,135.88,7.49411323]
[1750572353812,10.85073643,135.89,135.88,1.6065654]
[1750572353989,10.85073643,135.89,135.81,5.89058243]
[1750572353990,20.16854886,135.88,135.81,5.89058243]
[1750572354188,10.85073643,135.84,135.81,5.89058243]
[1750572354408,10.85073643,135.84,135.81,20.6170385]
[1750572355097,10.85073643,135.83,135.81,14.72645607]
[1750572355298,10.85073643,135.82,135.81,14.72645607]
[1750572355501,10.85073643,135.82,135.8,5.8910162]
[1750572356412,10.85073643,135.83,135.8,20.6185567]
[1750572357203,10.85073643,135.83,135.8,14.7275405]
[1750572358012,17.53073643,135.84,135.8,14.7275405]
[1750572359418,17.53073643,135.84,135.8,20.6185567]
[1750572360200,6.68,135.84,135.8,20.6185567]
[1750572360410,17.53073643,135.84,135.8,20.6185567]
[1750572360707,6.68,135.84,135.82,10.85073643]
[1750572360919,10.85073643,135.87,135.83,10.85073643]
[1750572361221,146.9,135.86,135.83,10.85073643]
[1750572361516,146.9,135.91,135.85,10.85073643]
[1750572361709,146.9,135.91,135.88,10.85073643]
[1750572361914,10.85073643,135.92,135.88,10.85073643]
[1750572362123,10.85073643,135.92,135.87,10.85073643]
[1750572362427,10.85073643,135.92,135.88,10.85073643]
[1750572362595,41.33073643,135.93,135.88,10.85073643]
[1750572362800,10.85073643,135.92,135.89,20.60490101]
[1750572363319,6.7,135.94,135.91,10.85073643]
[1750572363523,6.7,135.94,135.93,10.85073643]
[1750572363723,146.9,135.95,135.92,10.85073643]
[1750572363924,157.75073643,135.95,135.91,10.85073643]
[1750572364096,146.9,135.95,135.91,10.85073643]
[1750572364511,146.9,135.95,135.92,10.85073643]
[1750572364827,146.9,135.95,135.93,5.88538218]
[1750572365023,146.9,135.95,135.93,16.73611861]
[1750572366121,54.4,135.99,135.94,10.85073643]
[1750572366122,10.85073643,135.98,135.94,10.85073643]
[1750572366322,10.85073643,135.97,135.93,31.44957406]
[1750572367222,10.85073643,135.98,135.93,31.44957406]
[1750572370606,10.85073643,135.98,135.94,10.85073643]
[1750572370823,84.86,135.99,135.94,10.85073643]
[1750572371015,17.55073643,135.99,135.94,10.85073643]
[1750572371702,10.85073643,135.98,135.93,25.56419188]
[1750572373012,10.85073643,135.98,135.93,31.44957406]
[1750572375535,48.01073643,135.99,135.94,10.85073643]
[1750572377339,48.01073643,135.99,135.95,5.88451636]
[1750572377514,48.01073643,135.99,135.95,20.59580727]
[1750572377836,10.85073643,135.98,135.95,20.59580727]
[1750572378031,10.85073643,135.97,135.95,5.88451636]
[1750572379330,37.16,135.99,135.93,20.59883763]
[1750572379331,157.75073643,135.96,135.93,20.59883763]
[1750572379640,10.85073643,135.95,135.93,20.59883763]
[1750572380435,10.85073643,135.95,135.93,14.71345545]
[1750572381550,10.85073643,135.95,135.91,10.85073643]
[1750572383248,10.85073643,135.95,135.92,5.88581518]
[1750572384033,10.85073643,135.94,135.92,5.88581518]
[1750572384739,146.9,135.93,135.92,5.88581518]
[1750572385829,157.75073643,135.93,135.9,20.60338483]
[1750572386540,30.44,135.96,135.9,5.88668138]
[1750572386541,10.85073643,135.91,135.9,5.88668138]
[1750572386745,157.75073643,135.92,135.9,5.88668138]
[1750572386960,146.9,135.92,135.9,5.88668138]
[1750572387833,146.9,135.92,135.89,20.60473053]
[1750572389841,146.9,135.92,135.9,10.85073643]
[1750572390244,146.9,135.92,135.91,10.85073643]
[1750572390444,146.9,135.92,135.9,10.85073643]
[1750572392525,146.9,135.92,135.91,16.73698468]
[1750572392930,146.9,135.92,135.91,5.88624825]
[1750572393838,157.75073643,135.92,135.91,5.88624825]
[1750572394737,157.75073643,135.92,135.89,20.60473053]
[1750572395254,146.9,135.92,135.89,20.60473053]
[1750572396449,157.75073643,135.92,135.89,20.60473053]
[1750572397637,146.9,135.92,135.89,20.60473053]
[1750572398161,146.9,135.92,135.89,14.71761596]
[1750572398360,146.9,135.91,135.88,5.88754783]
[1750572399665,157.75073643,135.91,135.88,5.88754783]
[1750572400262,157.75073643,135.91,135.87,5.88798115]
[1750572400457,146.9,135.9,135.87,5.88798115]
[1750572401865,146.9,135.9,135.87,20.60793404]
[1750572402169,157.75073643,135.9,135.87,20.60793404]
[1750572402338,157.75073643,135.9,135.87,14.71995289]
[1750572402838,188.19073643,135.9,135.87,14.71995289]
[1750572403364,177.34,135.9,135.87,14.71995289]
[1750572403662,188.19073643,135.9,135.87,14.71995289]
[1750572405446,146.9,135.89,135.87,14.71995289]
[1750572406151,157.75073643,135.89,135.86,5.88841454]
[1750572406358,157.75073643,135.88,135.86,5.88841454]
[1750572406661,146.9,135.87,135.86,5.88841454]
[1750572407339,157.75073643,135.87,135.84,20.61166804]
[1750572407839,146.9,135.87,135.84,31.46240447]
[1750572408970,146.9,135.87,135.85,10.85073643]
[1750572409140,146.9,135.87,135.86,10.85073643]
[1750572409767,146.9,135.87,135.86,36.85073643]
[1750572410862,146.9,135.87,135.86,26.0]
[1750572411167,146.9,135.87,135.86,31.88841454]
[1750572413671,146.9,135.87,135.84,20.61166804]
[1750572413868,157.75073643,135.87,135.84,46.61166804]
[1750572414171,157.75073643,135.87,135.84,57.46240447]
[1750572414172,146.9,135.87,135.84,57.46240447]
[1750572417277,146.9,135.87,135.85,10.85073643]
[1750572417476,146.9,135.87,135.85,36.85073643]
[1750572418877,146.9,135.87,135.86,5.88841454]
[1750572420286,146.9,135.87,135.86,16.73915097]
[1750572420463,177.34,135.91,135.86,31.46018733]
[1750572420666,146.9,135.9,135.87,10.85073643]
[1750572420980,146.9,135.9,135.88,5.88754783]
[1750572421782,146.9,135.9,135.89,26.0]
[1750572422160,146.9,135.9,135.88,5.88754783]
[1750572422353,146.9,135.9,135.89,10.85073643]
[1750572422782,6.66,135.93,135.92,5.88581518]
[1750572423084,146.9,135.94,135.92,16.73655161]
[1750572424386,30.42,135.97,135.95,26.0]
[1750572424562,177.32,135.97,135.95,26.0]
[1750572424975,146.9,135.97,135.96,5.88408355]
[1750572426473,157.75073643,135.97,135.96,5.88408355]
[1750572428098,146.9,135.97,135.94,20.59732234]
[1750572428281,146.9,135.97,135.96,26.0]
[1750572428488,146.9,135.97,135.96,36.85073643]
[1750572429895,146.9,135.97,135.96,55.50038529]
[1750572430184,146.9,135.97,135.96,61.38446884]
[1750572430485,146.9,135.97,135.96,42.73481998]
[1750572430984,145.38431,135.97,135.96,42.73481998]
[1750572431289,145.38431,136.0,135.96,57.44502886]
[1750572435386,10.85073643,135.99,135.96,46.59429243]
[1750572435684,41.25073643,135.99,135.96,46.59429243]
[1750572435997,41.25073643,135.99,135.96,31.88408355]
[1750572436174,10.85073643,135.98,135.96,31.88408355]
[1750572436505,10.85073643,135.98,135.96,5.88408355]
[1750572436989,41.25073643,135.99,135.96,5.88408355]
[1750572438485,41.25073643,135.99,135.95,5.88451636]
[1750572440791,145.38431,135.98,135.95,5.88451636]
[1750572441001,156.23504643,135.98,135.95,5.88451636]
[1750572443399,156.23504643,135.97,135.94,31.88488688]
[1750572443691,145.38431,135.96,135.94,31.88488688]
[1750572447991,145.38431,135.96,135.94,5.88488688]
[1750572449903,145.38431,135.95,135.94,5.88488688]
[1750572450081,145.38431,135.95,135.93,5.88538218]
[1750572450605,145.38431,135.95,135.93,16.73611861]
[1750572451805,145.38431,135.95,135.94,10.85073643]
[1750572452303,145.38431,135.95,135.94,16.73568567]
[1750572454708,145.38431,135.95,135.93,16.73611861]
[1750572456699,145.38431,135.95,135.94,29.50038529]
[1750572457108,41.23073643,136.0,135.94,29.50038529]
[1750572457291,145.38431,135.99,135.95,10.85073643]
[1750572458712,145.38431,135.99,135.96,20.59429243]
[1750572458917,145.38431,135.99,135.98,10.85073643]
[1750572459381,47.87073643,136.04,135.98,10.85073643]
[1750572459584,145.38431,136.03,136.0,10.85073643]
[1750572460125,145.38431,136.03,135.99,10.85073643]
[1750572460903,145.38431,136.03,136.0,5.88235294]
[1750572461108,145.38431,136.03,136.01,10.85073643]
[1750572461320,145.38431,136.03,136.0,5.88235294]
[1750572461626,145.38431,136.03,136.02,10.85073643]
[1750572462218,8.1561,136.06,136.02,10.85073643]
[1750572462390,10.85073643,136.07,136.02,10.85073643]
[1750572462586,162.87504643,136.08,136.03,10.85073643]
[1750572462807,162.87504643,136.08,136.04,10.85073643]
[1750572463012,162.87504643,136.08,136.06,5.87975892]
[1750572463013,152.02431,136.08,136.06,5.87975892]
[1750572463691,152.02431,136.08,136.06,16.73049535]
[1750572464614,145.38431,136.13,136.07,10.85073643]
[1750572464818,175.74431,136.13,136.09,10.85073643]
[1750572465018,175.74431,136.13,136.07,18.64964886]
[1750572465019,145.38431,136.13,136.08,10.85073643]
[1750572465204,156.23504643,136.13,136.08,10.85073643]
[1750572466415,175.74431,136.13,136.09,5.87846278]
[1750572466621,186.59504643,136.13,136.09,5.87846278]
[1750572466802,10.85073643,136.11,136.09,5.87846278]
[1750572467403,10.85073643,136.12,136.09,5.87846278]
[1750572467598,175.74431,136.13,136.09,16.72919921]
[1750572467599,145.38431,136.13,136.09,16.72919921]
[1750572467806,145.38431,136.13,136.11,10.85073643]
[1750572468323,145.38431,136.13,136.12,5.8771672]
[1750572468831,145.38431,136.13,136.12,16.72790363]
[1750572469121,6.62,136.15,136.12,16.72790363]
[1750572469498,10.10241441,136.2,136.14,10.85073643]
[1750572469715,1.6545,136.22,136.18,10.85073643]
[1750572469907,186.57504643,136.24,136.2,10.85073643]
[1750572470227,6.62,136.25,136.2,10.85073643]
[1750572470228,6.62,136.25,136.23,5.87242163]
[1750572470701,6.0797,136.27,136.23,16.72315806]
[1750572471106,10.85073643,136.25,136.21,5.87328389]
[1750572471335,10.85073643,136.24,136.21,5.87328389]
[1750572471706,10.85073643,136.25,136.21,5.87328389]
[1750572471906,10.85073643,136.24,136.21,5.87328389]
[1750572472407,10.85073643,136.25,136.21,5.87328389]
[1750572473314,30.34,136.26,136.21,16.72402032]
[1750572473509,10.85073643,136.28,136.24,10.85073643]
[1750572473733,31.9945,136.29,136.25,10.85073643]
[1750572473734,42.84523643,136.29,136.25,10.85073643]
[1750572473934,10.85073643,136.28,136.24,10.85073643]
[1750572474432,31.9945,136.29,136.24,10.85073643]
[1750572474730,12.50523643,136.29,136.24,10.85073643]
[1750572474933,42.82523643,136.29,136.24,10.85073643]
[1750572475320,31.9745,136.29,136.25,16.72229606]
[1750572475930,10.85073643,136.29,136.25,20.55045871]
[1750572476138,17.47073643,136.3,136.25,31.40119514]
[1750572476809,24.7312043,136.3,136.25,38.66166301]
[1750572477030,6.62,136.3,136.26,18.1112043]
[1750572477232,1.5476,136.33,136.27,18.64964886]
[1750572477418,18.1112043,136.32,136.28,5.87026709]
[1750572478326,18.1112043,136.31,136.28,5.87026709]
[1750572478512,18.1112043,136.32,136.28,23.98147139]
[1750572478916,18.1112043,136.32,136.28,5.87026709]
[1750572480261,18.1112043,136.31,136.28,5.87026709]
[1750572480414,18.1112043,136.31,136.2,5.87371512]
[1750572480415,44.1112043,136.29,136.2,5.87371512]
[1750572480616,18.1112043,136.22,136.2,5.87371512]
[1750572481139,18.1112043,136.21,136.2,5.87371512]
[1750572481336,18.1112043,136.21,136.18,5.87457776]
[1750572481546,175.68431,136.25,136.18,5.87457776]
[1750572481547,18.1112043,136.19,136.18,5.87457776]
[1750572482331,18.1112043,136.19,136.15,14.68935383]
[1750572482332,18.1112043,136.19,136.15,20.56522602]
[1750572482740,30.3,136.22,136.15,20.56522602]
[1750572483036,18.1112043,136.19,136.15,20.56522602]
[1750572484527,18.1112043,136.2,136.15,38.67643032]
[1750572484736,18.1112043,136.2,136.16,18.1112043]
[1750572485442,18.1112043,136.2,136.16,36.76085316]
[1750572485750,18.1112043,136.19,136.15,20.56522602]
[1750572485911,175.68431,136.22,136.15,5.87587219]
[1750572485912,18.1112043,136.17,136.15,5.87587219]
[1750572486512,18.1112043,136.17,136.13,20.56857415]
[1750572487745,18.1112043,136.15,136.13,5.87673547]
[1750572488537,18.1112043,136.14,136.11,5.877599]
[1750572489561,18.1112043,136.14,136.1,20.57247489]
[1750572491934,18.1112043,136.14,136.1,38.68367919]
[1750572492865,18.1112043,136.11,136.1,5.87803085]
[1750572493757,18.1112043,136.11,136.08,5.87848569]
[1750572493935,18.1112043,136.09,136.04,32.81202353]
[1750572494129,18.1112043,136.08,136.04,14.70081923]
[1750572495078,18.1112043,136.08,136.04,20.58144257]
[1750572495970,18.1112043,136.09,136.05,18.64964886]
[1750572496270,18.1112043,136.1,136.05,36.76085316]
[1750572496453,18.1112043,136.09,136.05,36.76085316]
[1750572497150,7.7104,136.12,136.06,5.87975892]
[1750572497151,18.1112043,136.08,136.06,5.87975892]
[1750572498176,18.1112043,136.08,136.05,5.8801911]
[1750572498760,18.1112043,136.08,136.05,20.58066886]
[1750572499753,6.0695,136.12,136.07,18.1112043]
[1750572499984,18.1112043,136.12,136.07,18.1112043]
[1750572500158,18.1112043,136.12,136.08,20.57613167]
[1750572502383,163.4955143,136.13,136.09,18.1112043]
[1750572502759,163.4955143,136.13,136.08,20.57613167]
[1750572502760,163.4955143,136.13,136.08,38.68733597]
[1750572504379,163.4955143,136.13,136.09,18.1112043]
[1750572505156,145.38431,136.13,136.09,18.1112043]
[1750572505975,18.1112043,136.12,136.08,20.57613167]
[1750572506756,163.4955143,136.13,136.08,38.68733597]
[1750572507377,145.38431,136.13,136.09,18.1112043]
[1750572507583,163.4955143,136.13,136.09,18.1112043]
[1750572508580,163.4955143,136.13,136.1,5.87803085]